Cogmind - Beta 11 @@@ ROGUE MODE // 2022.04.14 @ 23:12:08 Player: Rainynight Result: Self-destructed Performance ------------- Evolutions (2) 1000 Regions Visited (5) 1000 Robots Destroyed (15) 75 Value Destroyed (127) 127 Prototype IDs (0) 0 Alien Tech Used (0) 0 Bonus (-88) -88 TOTAL SCORE: 2114 Bonus ------- Follower Combat Kills 21 Friendly Fire -109 Cogmind --------- Core Integrity 550/550 Matter 290/300 Energy 125/125 System Corruption 0% Temperature Cool (0) Movement Rolling (100) Location -8/Materials Parts ------- > --- POWER (1) -------- Light Ion Engine > --- PROPULSION (4) --- Compact Wheel Compact Wheel > --- UTILITY (4) ------ Small Storage Unit Transport Network Coupler Melee Analysis Suite > --- WEAPON (2) ------- Remote Datajack Makeshift Spear > --- INVENTORY (8) ---- Gravmag System Flight Unit Flight Unit Medium Matter Pod (100) Improved Terrain Scanner Makeshift Hacking Suite EM Pulse Gun Grenade Launcher Peak State ------------ > --- POWER ------------ Micro Nuclear Core > --- PROPULSION ------- Compact Wheel Gravmag System > --- UTILITY ---------- Small Storage Unit Transport Network Coupler > --- WEAPON ----------- Remote Datajack Makeshift Spear > --- INVENTORY -------- Light Nuclear Core Flight Unit Medium Matter Pod Medium Matter Pod Improved Terrain Scanner Makeshift Hacking Suite EM Pulse Gun Grenade Launcher [Rating: 20] Favorites ----------- Power Micro Nuclear Core Engine Light Ion Engine Power Core Micro Nuclear Core Propulsion Compact Wheel Leg Aluminum Leg Wheel Compact Wheel Hover Unit Gravmag System Flight Unit Flight Unit Utility Small Storage Unit Device Makeshift System Restoration Module Storage Small Storage Unit Processor Transport Network Coupler Weapon Remote Datajack Energy Gun EM Pulse Gun Ballistic Gun Assault Rifle Launcher Grenade Launcher Special Weapon Remote Datajack Piercing Weapon Makeshift Spear Build | -11 -10 -10 -10 -9 -8 ------- Run | Scr Mat Min Exi Min Mat Slots Evolved 4 | . . . . . 4 Power . | . . . . . . Propulsion 2 | . . . . . 2 Utility 2 | . . . . . 2 Weapon . | . . . . . . Parts Attached 31 | 4 . . 19 6 2 Power 3 | . . . 1 1 1 Engine 2 | . . . . 1 1 Core 1 | . . . 1 . . Reactor . | . . . . . . Propulsion 14 | 2 . . 7 5 . Treads . | . . . . . . Leg . | . . . . . . Wheel 8 | 2 . . 3 3 . Hover 2 | . . . 2 . . Flight 4 | . . . 2 2 . Utility 5 | . . . 4 . 1 Device 1 | . . . 1 . . Storage 2 | . . . 2 . . Processor 2 | . . . 1 . 1 Hackware . | . . . . . . Protection . | . . . . . . Artifact . | . . . . . . Weapon 9 | 2 . . 7 . . Energy Gun 1 | 1 . . . . . Energy Cannon . | . . . . . . Ballistic Gun 2 | 1 . . 1 . . Ballistic Cannon . | . . . . . . Launcher 1 | . . . 1 . . Special Weapon 3 | . . . 3 . . Impact Weapon . | . . . . . . Slashing Weapon . | . . . . . . Piercing Weapon 2 | . . . 2 . . Special Melee Weapon . | . . . . . . Unidentified Prototypes . | . . . . . . Corrupted Parts 1 | . . . 1 . . System Corruption 2 | . . . 2 . . Parts Lost . | . . . . . . Power . | . . . . . . Propulsion . | . . . . . . Utility . | . . . . . . Weapon . | . . . . . . Highest Loss Streak . | . . . . . . To Critical Strikes . | . . . . . . Average Slot Usage (%) 91 | . 85 85 93 99 65 Engine 4 | . 14 14 3 3 9 Core 9 | . . . 10 10 . Wheel 27 | . 28 28 27 26 18 Device 2 | . . . 2 . . Storage 11 | . 14 14 11 14 9 Processor 8 | . . . 8 14 11 Energy Gun 6 | . 28 28 5 . . Special Weapon 10 | . . . 11 14 9 Piercing Weapon 9 | . . . 10 14 9 Naked Turns . | . . . . . . Heaviest Build 17 | 12 12 12 17 16 13 Greatest Support 32 | 32 32 32 32 32 32 Greatest Overweight (x) 4 | . . . 1 4 . Average Overweight (x) . | . . . . . . Largest Inventory Capacity 8 | 8 8 8 8 8 8 Average Capacity 7 | 8 8 8 7 8 8 Most Carried 8 | 7 8 8 8 8 8 Average Carried 7 | 6 7 7 7 7 8 Final Capacity 8 | 8 8 8 8 8 8 Final Carried 8 | 7 8 7 8 8 8 Class Distribution -------------------- 100% | Mutant Dominant Class ---------------- Mutant | -10/Materials Mutant | -10/Mines Mutant | -10/Exiles Mutant | -9/Mines Mutant | -8/Materials Resources | -11 -10 -10 -10 -9 -8 ----------- Run | Scr Mat Min Exi Min Mat Matter Collected 716 | 223 23 . 375 46 49 Remotely . | . . . . . . Salvage Created 1070 | 217 50 16 406 16 365 Parts 56 | 18 2 2 18 2 14 Haulers Intercepted . | . . . . . . Recyclers Shooed . | . . . . . . Parts Field Recycled . | . . . . . . Retrieved Matter . | . . . . . . Parts Self-Destructed . | . . . . . . Prevented . | . . . . . . Kills | -11 -10 -10 -10 -9 -8 ------- Run | Scr Mat Min Exi Min Mat Combat Hostiles Destroyed 3 | . 1 1 . 1 . Melee 1 | . . . . 1 . Guns 2 | . 1 1 . . . Classes Destroyed 5 | 2 1 1 . . 1 Worker 1 | . . . . . 1 Tunneler 6 | 5 . . . . 1 Recycler 5 | 1 . . . . 4 Swarmer 2 | . . 1 . 1 . Grunt 1 | . 1 . . . . Best Kill Streak 5 | 4 1 1 . 1 5 Combat Bots Only 1 | . 1 1 . 1 . Max Kills in Single Turn 1 | 1 1 1 . 1 1 Gunslinging . | . . . . . . Exploded . | . . . . . . Melee 1 | . . . . 1 . Uniques/NPCs Destroyed . | . . . . . . Combat | -11 -10 -10 -10 -9 -8 -------- Run | Scr Mat Min Exi Min Mat Damage Taken 160 | . 20 30 18 82 10 Core 59 | . . . 7 52 . Absorbed by Shields . | . . . . . . Core Remaining (%) 88 | 100 . . . 76 . Volleys Fired 60 | 7 2 3 43 5 . Largest 2 | 2 2 2 2 1 . Hottest 80 | 80 80 80 80 5 . Shots Fired 90 | 14 4 6 61 5 . Gun 72 | 14 4 6 48 . . Cannon . | . . . . . . Launcher 9 | . . . 9 . . Special 9 | . . . 4 5 . Kinetic 4 | 2 . . 2 . . Thermal . | . . . . . . Explosive 9 | . . . 9 . . Electromagnetic 68 | 12 4 6 46 . . Robot Hit Streak 26 | 7 6 1 26 11 . Robot Miss Streak 5 | 1 . 5 4 1 . Penetration Max . | . . . . . . Secondary Targets . | . . . . . . Shots Hit Robots 77 | 10 3 1 51 5 7 Core Hits 35 | 6 2 1 22 1 3 Critical Kills . | . . . . . . Critical Parts Destroyed . | . . . . . . Critical Strikes 5 | . . . 3 . 2 Corrupt 1 | . . . 1 . . Impale 4 | . . . 2 . 2 Melee Attacks 69 | . . . 59 3 7 Impact . | . . . . . . Slashing . | . . . . . . Piercing 69 | . . . 59 3 7 Sneak Attacks 7 | . . . . . 7 Combat Hostiles . | . . . . . . Follow-up Attacks . | . . . . . . Damage Inflicted 1505 | 163 53 37 832 31 389 Guns 521 | 135 53 37 296 . . Cannons . | . . . . . . Explosions 91 | 28 . . 63 . . Melee 893 | . . . 473 31 389 Ramming . | . . . . . . Kinetic 48 | 15 . . 33 . . Thermal 28 | 28 . . . . . Explosive 63 | . . . 63 . . Electromagnetic 473 | 120 53 37 263 . . Impact . | . . . . . . Slashing . | . . . . . . Piercing 893 | . . . 473 31 389 Highest Corruption 2 | . . . 2 . . Average Corruption 1 | . . . 1 . . Corruption Purged 2 | . . . 2 . . Corruption Blocked . | . . . . . . Effects 12 | . . . 12 . . Message Errors 4 | . . . 4 . . Matter Fused 3 | . . . 3 . . Energy Discharges 3 | . . . 3 . . Data Loss (minor) 1 | . . . 1 . . Data Loss (major) 1 | . . . 1 . . Overload Shots . | . . . . . . Overflow Damage 207 | . . . 54 . 153 Projectiles . | . . . . . . Explosions . | . . . . . . Melee 207 | . . . 54 . 153 Knockbacks . | . . . . . . Impact . | . . . . . . Kinetic . | . . . . . . Secondary . | . . . . . . Self-Inflicted Damage 18 | . . . 18 . . Shots 2 | . . . 2 . . Rammed . | . . . . . . Targets Rammed . | . . . . . . Kicked . | . . . . . . Crushed . | . . . . . . Highest Temperature 180 | 110 48 54 180 . . Average Temperature 58 | 62 27 28 65 . . Received Heat Transfer 12 | . 12 . . . . Siege Activations . | . . . . . . Robots Corrupted . | . . . . . . Combat Hostiles . | . . . . . . Parts Fried . | . . . . . . Impact Corruptions . | . . . . . . Robots Melted . | . . . . . . Combat Hostiles . | . . . . . . Parts Melted . | . . . . . . Heat Transferred 50 | 50 . . . . . Parts Sabotaged . | . . . . . . Parts Stolen . | . . . . . . Parts Stripped . | . . . . . . Power Chain Reactions 1 | 1 . . . . . Missiles Intercepted . | . . . . . . Alert | -11 -10 -10 -10 -9 -8 ------- Run | Scr Mat Min Exi Min Mat Peak Influence 95 | 30 62 95 . 83 76 Initial 31 | . 19 24 . . 31 Average 43 | 14 48 84 . 31 49 Maximum Alert Level . | . . . . . . Low Security (%) 100 | 100 100 100 . 100 100 Level 1 . | . . . . . . Level 2 . | . . . . . . Level 3 . | . . . . . . Level 4 . | . . . . . . Level 5 . | . . . . . . High Security . | . . . . . . Max Security . | . . . . . . Squads Dispatched 1 | . 1 . . . . Investigation . | . . . . . . Extermination . | . . . . . . Reinforcement 1 | . 1 . . . . Assault . | . . . . . . Garrison . | . . . . . . Intercept . | . . . . . . Searches Triggered . | . . . . . . Construction Impeded . | . . . . . . Haulers Reinforced . | . . . . . . Active Scanning Responses . | . . . . . . Cargo Convoy Interrupts . | . . . . . . Stealth | -11 -10 -10 -10 -9 -8 --------- Run | Scr Mat Min Exi Min Mat Distress Signals 1 | . . . . . 1 Communications Jammed . | . . . . . . Distress Signals . | . . . . . . Times Spotted 11 | . 2 3 . 3 3 Peak Tracking Total 5 | . 1 3 . 3 5 Tactical Retreats 1 | . . 1 . . . Traps | -11 -10 -10 -10 -9 -8 ------- Run | Scr Mat Min Exi Min Mat Traps Triggered . | . . . . . . Indirectly . | . . . . . . Trap Hack Attempts . | . . . . . . Triggered . | . . . . . . Disarmed . | . . . . . . Reprogrammed . | . . . . . . Reused . | . . . . . . Traps Extracted . | . . . . . . Installed . | . . . . . . Triggered . | . . . . . . Machines | -11 -10 -10 -10 -9 -8 ---------- Run | Scr Mat Min Exi Min Mat Machines Disabled 2 | . . . 2 . . Max in Single Turn 1 | . . . 1 . . Machines Sabotaged . | . . . . . . Garrisons Compromised . | . . . . . . Overloaded Fab Kills . | . . . . . . Hacking | -11 -10 -10 -10 -9 -8 --------- Run | Scr Mat Min Exi Min Mat Machines Accessed 5 | . 1 . 4 . . Terminals 1 | . 1 . . . . Fabricators . | . . . . . . Repair Stations . | . . . . . . Recycling Units . | . . . . . . Scanalyzers . | . . . . . . Garrison Access . | . . . . . . Total Hacks 42 | . 1 . 41 . . Successful 42 | . 1 . 41 . . Failed . | . . . . . . Catastrophic . | . . . . . . Database Lockouts . | . . . . . . Manual 1 | . 1 . . . . Terminals 1 | . 1 . . . . Fabricators . | . . . . . . Repair Stations . | . . . . . . Recycling Units . | . . . . . . Scanalyzers . | . . . . . . Garrison Access . | . . . . . . Terminal Hacks 42 | . 1 . 41 . . Record 41 | . . . 41 . . Branch Access Points 1 | . 1 . . . . Fabricator Hacks . | . . . . . . Repair Station Hacks . | . . . . . . Recycling Unit Hacks . | . . . . . . Scanalyzer . | . . . . . . Garrison Access Hacks . | . . . . . . Unauthorized Hacks . | . . . . . . Terminals . | . . . . . . Fabricators . | . . . . . . Repair Stations . | . . . . . . Recycling Units . | . . . . . . Scanalyzers . | . . . . . . Garrison Access . | . . . . . . Data Cores Recovered . | . . . . . . Used . | . . . . . . Hacking Detections 1 | . 1 . . . . Full Trace Events . | . . . . . . Feedback Events . | . . . . . . Feedback Blocked . | . . . . . . Robot Schematics Acquired . | . . . . . . Robots Built . | . . . . . . Authchips . | . . . . . . Time . | . . . . . . Total Robot Build Rating . | . . . . . . Part Schematics Acquired . | . . . . . . Parts Built . | . . . . . . Authchips . | . . . . . . Time . | . . . . . . Total Part Build Rating . | . . . . . . Parts Repaired . | . . . . . . Time . | . . . . . . Parts Recycled . | . . . . . . Recycled Matter . | . . . . . . Retrieved Matter . | . . . . . . Retrieved Components . | . . . . . . Parts Scanalyzed . | . . . . . . Part Schematics Acquired . | . . . . . . Parts Damaged . | . . . . . . Bothacking | -11 -10 -10 -10 -9 -8 ------------ Run | Scr Mat Min Exi Min Mat Used RIF Installer . | . . . . . . Robots Hacked 2 | . . . . 2 . Non-combat 2 | . . . . 2 . Combat . | . . . . . . Robot Hacks Applied 2 | . . . . 2 . no_distress 2 | . . . . 2 . Relay Couplers Released . | . . . . . . Fabnet Peak Effective % . | . . . . . . Robots Rewired 3 | . . . 3 . . Allies Hacked . | . . . . . . Hacks Repelled . | . . . . . . Allies | -11 -10 -10 -10 -9 -8 -------- Run | Scr Mat Min Exi Min Mat Total Allies 5 | . . 2 3 . . Largest Group 3 | . . 2 3 3 3 Highest-Rated Group 42 | . . 42 31 24 24 Highest-Rated Ally 31 | . . 31 31 8 8 Total Orders . | . . . . . . Ally Attacks 12 | . . 3 . 8 1 Total Damage 97 | . . 43 . 54 . Kills 3 | . . 1 . 2 . Allies Corrupted . | . . . . . . Allies Melted . | . . . . . . Intel | -11 -10 -10 -10 -9 -8 ------- Run | Scr Mat Min Exi Min Mat Robot Analysis Total . | . . . . . . Derelict Logs Recovered . | . . . . . . Drone Launches . | . . . . . . Drone Recoveries . | . . . . . . Exploration | -11 -10 -10 -10 -9 -8 ------------- Run | Scr Mat Min Exi Min Mat Turns Passed 1949 | 70 64 78 1476 175 86 Spaces Moved 1220 | 6 58 67 888 136 65 Core 2 | . . . . 2 . Treads . | . . . . . . Legs . | . . . . . . Wheels 1217 | 6 58 67 887 134 65 Hover 1 | . . . 1 . . Flight . | . . . . . . Fastest Speed 100 | 100 100 100 100 100 100 Average Speed 100 | 100 100 100 100 102 100 Slowest Speed 250 | 100 100 100 125 250 100 Overloaded Moves . | . . . . . . Propulsion Burnouts . | . . . . . . Robots Hopped . | . . . . . . Cave-ins Triggered . | . . . . . . Exploration Rate (%) 27 | 2 21 14 92 28 6 Regions Visited 5 Branch Regions 3 Pre-discovered Areas 2 | . . . 1 1 . Known Exits Taken 1 | . 1 . . . . Unknown Exits Taken 4 | 1 . 1 1 1 . Scrap Searched 1 | . . . . 1 . Spaces Dug 22 | . . . 21 1 . Terrain Destroyed 36 | 2 . . 33 1 . Melee 5 | . . . 4 1 . Projectile . | . . . . . . AOE 31 | 2 . . 29 . . Terrain Rammed . | . . . . . . Walls Destroyed . | . . . . . . Machines Disabled . | . . . . . . Actions | -11 -10 -10 -10 -9 -8 --------- Run | Scr Mat Min Exi Min Mat Total 1786 | 53 60 72 1355 167 79 Wait 356 | 36 . . 308 10 2 Move 1215 | 5 57 66 887 135 65 Hop . | . . . . . . Pick Up 15 | 1 1 1 10 1 1 Fast Attach 17 | . . . 11 5 1 Attach 2 | . . . 1 1 . Detach 3 | . . . 2 1 . Swap 12 | 4 . . 7 . 1 Drop 25 | . . 2 15 6 2 Fire 60 | 7 2 3 43 5 . Melee 69 | . . . 59 3 7 Ram . | . . . . . . Kick . | . . . . . . Crush . | . . . . . . Escape Stasis . | . . . . . . Rewire 12 | . . . 12 . . Trap . | . . . . . . Miscellaneous . | . . . . . . Route ------- -11/Scrapyard -10/Materials (discovered 2 exits: *Min x2) -10/Mines -10/Exiles (discovered 2 exits: [*Min x2]) -9/Mines -8/Materials History --------- Turn | Location | Event 3 | -11/Scrapyard | Discovered new exit (range 2) 71 | -11/Scrapyard | Entered Materials 87 | -10/Materials | Identified exit to Mines 135 | -10/Materials | Entered Mines 209 | -10/Mines | Deemed a non-threat by the Exiles lab entrance 209 | -10/Mines | Discovered new exit (range 5) 213 | -10/Mines | Entered Exiles 213 | -10/Exiles | Found Exiles lab destroyed 213 | -10/Exiles | Accompanied by 1 ally 226 | -10/Exiles | Discovered new exit (range 15) 243 | -10/Exiles | Led the pair of lost Derelicts to a safe place 311 | -10/Exiles | Build established: Mutant 607 | -10/Exiles | Learned location of Zion (-6) 689 | -10/Exiles | Discovered new exit (range 10) 1689 | -10/Exiles | Entered Mines 1689 | -9/Mines | Accompanied by 3 allies 1690 | -9/Mines | Learned location of Storage (-8) 1793 | -9/Mines | Discovered new exit (range 16) 1864 | -9/Mines | Entered Materials 1864 | -8/Materials | Accompanied by 3 allies 1864 | -8/Materials | Evolved 4 slots: Propulsion x2, Utility x2 1950 | -8/Materials | Self-destructed Last Messages --------------- 01900_ Acquired Imp. Terrain Scanner. 01903_ K-01 Serf collects debris. 01905_ R-06 Scavenger collects Wheel. 01906_ K-01 Serf collects debris. 01906_ Sneak attack on K-01 Serf. 01906_ Destroyed Wheel. 01906_ K-01 Serf destroyed. 01908_ R-06 Scavenger collects Wheel. 01910_ Sneak attack on R-06 Scavenger. 01910_ Destroyed Com. Wheel. 01910_ R-06 Scavenger destroyed. 01910_ R-06 Scavenger collects Sml. Storage Unit. 01914_ R-06 Scavenger collects Tractor Beam. 01914_ Sneak attack on R-06 Scavenger. 01914_ Destroyed Lgt. Ion Engine. 01916_ Sneak attack on R-06 Scavenger. 01916_ R-06 Scavenger suffers critical hit (Impale). 01916_ R-06 Scavenger destroyed. 01936_ Acquired Melee Analysis Suite. 01946_ W-25 Informer sends out distress signal. Map ----- +----------------------------------------------------+ | ?????????????????????????????????????????????????? | | ?????????????????????????????????????????????????? | | ???????????#?????????????????????????????????????? | | ???????? #?????????????????????????????????????? | | ??????? #?????????????????????????????????????? | | ??????? #?????????????????????????????????????? | | ???????# #?????????????????????????????????????? | | ???????# #?????????????????????????????????????? | | ???????# #?????????????????????????????????????? | | ???????# ########??????????????????????????????? | | ???????# # ????????????????????????????? | | ???????+ # #???????????????????????????? | | ???????# # #???????????????????????????? | | ???????# # #???????????????????????????? | | ???##### # [| """ #??????????????????????????a? | | ???# # || """ #???????????????????????????? | | ???# #? """ #???????????????????????????? | | ???# #??? ?????????????????????????????? | | ???#### =######+######+######+?????????????????? | | ??????# !%!%! ????????????????? | | ??????# ! =!=%= ????????????????? | | ??????# = !% * ????????????????? | | ??????####%######+############ ?????????????????? | | ????????#*!#????# #??????????????????????? | | ????????####????# ! #??????????????????????? | | ????????????????# @#??????????????????????? | | ????????????????# """ gg#### ????????? | | ????????????????# """ g"" u ????????? | | ????????????????# """ Y" #### ????????? | | ????????????????# "" #??????????????????????? | | ????????????????# #??????????????????????? | | ????????????????###########??????????????????????? | | ?????????????????????????????????????????????????? | | ?????????????????????????????????????????????????? | | ?????????????????????????????????????????????????? | | ?????????????????????????????????????????????????? | | ?????????????????????????????????????????????????? | | ??????????????????????????????????????a??????????? | | ?????????????????????????????????????????????????? | | ?????????????????????????????????????????????????? | | ?????????????????????????????????????????????????? | | ?????????????????????????????????????????????????? | | ?????????????????????????????????????????????????? | | ?????????????????????????????????????????????????? | | ?????????????????????????????????????????????????? | | ?????????????????????????????????????????????????? | | ?????????????????????????????????????????????????? | | ?????????????????????????????????????????????????? | | ?????????????????????????????????????????????????? | | ?????????????????????????????????????????????????? | +----------------------------------------------------+ Best States ------------- Heat Dissipation 31 Energy Generation 15 Energy Capacity 150 Matter Stores 370 Matter Capacity 400 Sight Range 16 Terrain Scan Density 10 Evasion (%) 40 Melee Accuracy 5 Item Schematics ----------------- None Robot Schematics ------------------ None Fabricated ------------ Nothing Alien Tech Used ----------------- None Achievements -------------- None Challenges ------------ None Game ------ Seed StormCloakPurifier Manual? 0 Play Time 00:13:25 Cumulative 78.8 hours Start 2022.04.14 @ 22:50:42 End 2022.04.14 @ 23:12:08 Sessions 1 Manual Loads 0 Difficulty Rogue Special Mode None Game No. 89 Rogue 89 Adventurer 0 Explorer 0 Win Type - Total 1 Types 1/0/0/0/0/0/0/0/0 Lore% 48 Gallery% 53 Achievement% 39 Wizard Run 0 Options --------- ASCII 1 Keyboard 1 Movement Numpad Keybinds 0 Fullscreen 1 Font 18/X11 Map View 76x50 Tactical HUD 1 Map Filters NONE Filters NONE Steam 1 RUN: d7137c82-6a2d-455e-a1ae-bce43277978a